[Event "NJSK 2021 Meisjes A&B"]
[Site "Almelo, Netherlands"]
[Date "2021.08.06"]
[Round "6.7"]
[White "Bertholee, Arjuna"]
[Black "Duson, Stella"]
[Result "1-0"]
[TimeControl "90min/40moves + 30sec/move"]
[WhiteElo "1144"]
[BlackElo "1259"]

1. e4 {[%clk 01:30:57]} {[%emt 00:00:02]} e5 {[%clk 01:30:55]} {[%emt
00:00:05]} 2. Nf3 {[%clk 01:31:18]} {[%emt 00:00:09]} Nf6 {[%clk 01:31:04]}
{[%emt 00:00:22]} 3. Nc3 {[%clk 01:31:26]} {[%emt 00:00:22]} Nc6 {[%clk
01:31:23]} {[%emt 00:00:11]} 4. Bb5 {[%clk 01:31:32]} {[%emt 00:00:24]} Bc5
{[%clk 01:31:19]} {[%emt 00:00:35]} 5. O-O {[%clk 01:29:58]} {[%emt 00:02:03]}
O-O {[%clk 01:24:34]} {[%emt 00:07:16]} 6. Nxe5 {[%clk 01:27:06]} {[%emt
00:03:21]} Nxe5 {[%clk 01:16:01]} {[%emt 00:09:04]} 7. d4 {[%clk 01:26:05]}
{[%emt 00:01:31]} Bxd4 {[%clk 01:16:04]} {[%emt 00:00:26]} 8. Qxd4 {[%clk
01:25:46]} {[%emt 00:00:48]} Nc6 {[%clk 01:15:50]} {[%emt 00:00:45]} 9. Qd3
{[%clk 01:23:07]} {[%emt 00:03:09]} d6 {[%clk 01:11:20]} {[%emt 00:05:00]} 10.
Bg5 {[%clk 01:17:32]} {[%emt 00:06:06]} Ne5 {[%clk 01:04:53]} {[%emt 00:06:55]}
11. Qg3 {[%clk 01:11:59]} {[%emt 00:06:04]} Ng6 {[%clk 01:01:38]} {[%emt
00:03:44]} 12. f4 {[%clk 01:05:56]} {[%emt 00:06:33]} h6 {[%clk 00:55:14]}
{[%emt 00:06:54]} 13. f5 {[%clk 00:57:28]} {[%emt 00:08:58]} hxg5 {[%clk
00:51:26]} {[%emt 00:04:18]} 14. fxg6 {[%clk 00:55:45]} {[%emt 00:02:11]} Nh5
{[%clk 00:50:07]} {[%emt 00:01:51]} 15. Qf3 {[%clk 00:49:29]} {[%emt 00:06:45]}
Nf6 {[%clk 00:43:25]} {[%emt 00:07:12]} 16. gxf7+ {[%clk 00:47:52]} {[%emt
00:02:07]} Kh8 {[%clk 00:36:49]} {[%emt 00:07:05]} 17. Bc4 {[%clk 00:44:44]}
{[%emt 00:03:39]} Qe7 {[%clk 00:30:38]} {[%emt 00:06:41]} 18. Nd5 {[%clk
00:39:29]} {[%emt 00:05:45]} Qxe4 {[%clk 00:28:15]} {[%emt 00:02:54]} 19. Nxf6
{[%clk 00:36:46]} {[%emt 00:03:13]} Qxf3 {[%clk 00:26:09]} {[%emt 00:02:36]} 20.
Rxf3 {[%clk 00:36:55]} {[%emt 00:00:20]} gxf6 {[%clk 00:26:26]} {[%emt
00:00:13]} 21. Rxf6 {[%clk 00:35:46]} {[%emt 00:01:38]} Kg7 {[%clk 00:26:30]}
{[%emt 00:00:27]} 22. Rf3 {[%clk 00:34:43]} {[%emt 00:01:34]} c6 {[%clk
00:25:29]} {[%emt 00:01:31]} 23. Raf1 {[%clk 00:26:17]} {[%emt 00:08:55]} d5
{[%clk 00:25:13]} {[%emt 00:00:46]} 24. Bd3 {[%clk 00:25:16]} {[%emt 00:01:31]}
Be6 {[%clk 00:25:10]} {[%emt 00:00:33]} 25. Rg3 {[%clk 00:24:24]} {[%emt
00:01:21]} Rxf7 {[%clk 00:18:32]} {[%emt 00:07:09]} 26. Rxg5+ {[%clk 00:23:08]}
{[%emt 00:01:46]} Kh6 {[%clk 00:18:17]} {[%emt 00:00:45]} 27. Rg6+ {[%clk
00:22:45]} {[%emt 00:00:53]} Kh5 {[%clk 00:16:40]} {[%emt 00:02:07]} 28. Rxe6
{[%clk 00:22:43]} {[%emt 00:00:31]} Rxf1+ {[%clk 00:16:12]} {[%emt 00:01:00]}
29. Kxf1 {[%clk 00:22:42]} {[%emt 00:00:30]} Rf8+ {[%clk 00:16:34]} {[%emt
00:00:09]} 30. Ke2 {[%clk 00:22:29]} {[%emt 00:00:43]} Kg4 {[%clk 00:16:12]}
{[%emt 00:00:52]} 31. Re7 {[%clk 00:21:06]} {[%emt 00:01:53]} Rh8 {[%clk
00:16:08]} {[%emt 00:00:34]} 32. h3+ {[%clk 00:17:44]} {[%emt 00:03:52]} Kg3
{[%clk 00:15:25]} {[%emt 00:01:13]} 33. Rxb7 {[%clk 00:14:28]} {[%emt
00:03:46]} Kxg2 {[%clk 00:15:13]} {[%emt 00:00:40]} 34. Rg7 {[%clk 00:13:12]}
{[%emt 00:01:48]} Kxh3 {[%clk 00:15:04]} {[%emt 00:00:39]} 35. Rh7+ {[%clk
00:13:22]} {[%emt 00:00:20]} Rxh7 {[%clk 00:15:18]} {[%emt 00:00:15]} 36. Bxh7
{[%clk 00:13:46]} {[%emt 00:00:06]} Kg3 {[%clk 00:15:39]} {[%emt 00:00:09]} 37.
Kd3 {[%clk 00:14:03]} {[%emt 00:00:14]} c5 {[%clk 00:15:30]} {[%emt 00:00:39]}
38. Bg8 {[%clk 00:14:15]} {[%emt 00:00:18]} Kf4 {[%clk 00:15:31]} {[%emt
00:00:29]} 39. Bxd5 {[%clk 00:14:35]} {[%emt 00:00:10]} Ke5 {[%clk 00:15:57]}
{[%emt 00:00:04]} 40. Kc4 {[%clk 00:14:52]} {[%emt 00:00:13]} Kd6 {[%clk
00:16:00]} {[%emt 00:00:27]} 41. Bf3 {[%clk 00:14:42]} {[%emt 00:00:39]} a5
{[%clk 00:15:40]} {[%emt 00:00:51]} 42. Kb5 {[%clk 00:15:03]} {[%emt 00:00:09]}
a4 {[%clk 00:16:06]} {[%emt 00:00:04]} 43. Kxa4 {[%clk 00:15:25]} {[%emt
00:00:08]} c4 {[%clk 00:16:34]} {[%emt 00:00:03]} 44. Kb4 {[%clk 00:15:44]}
{[%emt 00:00:11]} c3 {[%clk 00:16:58]} {[%emt 00:00:06]} 45. Kxc3 {[%clk
00:16:02]} {[%emt 00:00:11]} Kc5 {[%clk 00:17:23]} {[%emt 00:00:05]} 46. a4
{[%clk 00:15:59]} {[%emt 00:00:33]} Kb6 {[%clk 00:17:47]} {[%emt 00:00:05]} 47.
b4 {[%clk 00:16:06]} {[%emt 00:00:23]} Ka7 {[%emt 00:00:10]} 48. a5 {[%clk
00:16:06]} {[%emt 00:00:28]} Kb8 {[%clk 00:18:31]} {[%emt 00:00:08]} 49. b5
{[%clk 00:16:52]} {[%emt 00:00:16]} Ka7 {[%clk 00:19:22]} {[%emt 00:00:09]} 50.
b6+ {[%clk 00:17:01]} {[%emt 00:00:21]} Kb8 {[%clk 00:19:44]} {[%emt 00:00:07]}
51. a6 {[%clk 00:16:56]} {[%emt 00:00:35]} Kc8 {[%clk 00:20:13]} {[%emt
00:00:02]} 52. a7 {[%clk 00:17:15]} {[%emt 00:00:11]} Kd8 {[%clk 00:20:36]}
{[%emt 00:00:06]} 53. a8=Q+ {[%clk 00:17:37]} {[%emt 00:00:08]} Kd7 {[%clk
00:21:03]} {[%emt 00:00:03]} 54. Qc6+ {[%clk 00:17:49]} {[%emt 00:00:17]} Kd8
{[%clk 00:21:28]} {[%emt 00:00:05]} 55. Qc7+ {[%clk 00:18:05]} {[%emt
00:00:14]} Ke8 {[%clk 00:21:40]} {[%emt 00:00:18]} 56. Bh5+ {[%clk 00:18:21]}
{[%emt 00:00:13]} Kf8 {[%clk 00:22:03]} {[%emt 00:00:08]} 57. Qf7# {[%clk
00:18:45]} {[%emt 00:00:05]} 1-0

[Event "NJSK 2021 Meisjes A&B"]
[Site "Almelo, Netherlands"]
[Date "2021.08.07"]
[Round "7.1"]
[White "Ricken, Katharina"]
[Black "Cordes, Jule"]
[Result "1/2-1/2"]
[TimeControl "90min/40moves + 30sec/move"]
[WhiteElo "2030"]
[BlackElo "1790"]

1. Nf3 {[%clk 01:30:59]} c5 {[%clk 01:30:51]} {[%emt 00:00:10]} 2. b3 {[%clk
01:31:25]} {[%emt 00:00:04]} Nc6 {[%clk 01:31:06]} {[%emt 00:00:16]} 3. Bb2
{[%clk 01:31:50]} {[%emt 00:00:04]} Nf6 {[%clk 01:31:18]} {[%emt 00:00:18]} 4.
c4 {[%clk 01:31:58]} {[%emt 00:00:23]} d5 {[%clk 01:30:33]} {[%emt 00:01:14]} 5.
cxd5 {[%clk 01:31:36]} {[%emt 00:00:52]} Nxd5 {[%clk 01:30:23]} {[%emt
00:00:40]} 6. g3 {[%clk 01:29:06]} {[%emt 00:02:59]} f6 {[%clk 01:28:53]}
{[%emt 00:02:00]} 7. d4 {[%clk 01:27:35]} {[%emt 00:02:02]} Qa5+ {[%clk
01:27:15]} {[%emt 00:02:08]} 8. Nbd2 {[%clk 01:23:24]} {[%emt 00:04:41]} cxd4
{[%clk 01:22:05]} {[%emt 00:05:40]} 9. Nxd4 {[%clk 01:23:06]} {[%emt 00:00:48]}
Nxd4 {[%clk 01:21:21]} {[%emt 00:01:13]} 10. Bxd4 {[%clk 01:23:29]} {[%emt
00:00:07]} e5 {[%clk 01:21:07]} {[%emt 00:00:45]} 11. Bb2 {[%clk 01:23:23]}
{[%emt 00:00:36]} Bc5 {[%clk 01:02:04]} {[%emt 00:19:33]} 12. e3 {[%clk
01:10:31]} {[%emt 00:13:22]} Bf5 {[%clk 00:43:42]} {[%emt 00:18:52]} 13. Qe2
{[%clk 00:58:37]} {[%emt 00:12:23]} Bd7 {[%clk 00:33:41]} {[%emt 00:10:32]} 14.
a3 {[%clk 00:49:22]} {[%emt 00:09:45]} Be7 {[%clk 00:26:14]} {[%emt 00:07:57]}
15. b4 {[%clk 00:40:56]} {[%emt 00:08:56]} Qb6 {[%clk 00:21:10]} {[%emt
00:05:33]} 16. Qc4 {[%clk 00:33:03]} {[%emt 00:08:24]} Be6 {[%clk 00:19:22]}
{[%emt 00:02:17]} 17. Qb5+ {[%clk 00:32:49]} {[%emt 00:00:45]} Qxb5 {[%clk
00:13:30]} {[%emt 00:06:21]} 18. Bxb5+ {[%clk 00:33:18]} {[%emt 00:00:02]} Kf7
{[%clk 00:13:26]} {[%emt 00:00:34]} 19. Bc4 {[%clk 00:24:26]} {[%emt 00:09:22]}
Rac8 {[%clk 00:12:05]} {[%emt 00:01:51]} 20. Rc1 {[%clk 00:23:14]} {[%emt
00:01:42]} Rhd8 {[%clk 00:10:23]} {[%emt 00:02:12]} 21. Ke2 {[%clk 00:22:16]}
{[%emt 00:01:28]} Nc7 {[%clk 00:09:14]} {[%emt 00:01:39]} 22. Rc2 {[%clk
00:20:16]} {[%emt 00:02:29]} Na8 {[%clk 00:08:12]} {[%emt 00:01:32]} 23. Rhc1
{[%clk 00:19:42]} {[%emt 00:01:05]} Nb6 {[%clk 00:08:32]} {[%emt 00:00:10]} 24.
Bxe6+ {[%clk 00:16:42]} {[%emt 00:03:30]} Kxe6 {[%clk 00:09:00]} {[%emt
00:00:01]} 25. Rxc8 {[%clk 00:13:23]} {[%emt 00:03:49]} Rxc8 {[%clk 00:09:18]}
{[%emt 00:00:12]} 26. Rxc8 {[%clk 00:13:38]} {[%emt 00:00:15]} Nxc8 {[%clk
00:09:22]} {[%emt 00:00:27]} 27. e4 {[%clk 00:12:01]} {[%emt 00:02:07]} Nb6
{[%clk 00:08:52]} {[%emt 00:01:20]} 28. Nb1 {[%emt 00:00:29]} 1/2-1/2

[Event "NJSK 2021 Meisjes A&B"]
[Site "Almelo, Netherlands"]
[Date "2021.08.07"]
[Round "7.2"]
[White "Bogouslavskii, Veronique"]
[Black "De Zoeten, Cato"]
[Result "0-1"]
[TimeControl "90min/40moves + 30sec/move"]
[WhiteElo "1207"]
[BlackElo "1881"]

1. d4 {[%clk 01:30:55]} {[%emt 00:00:05]} Nf6 {[%clk 01:30:51]} {[%emt
00:00:09]} 2. Bg5 {[%clk 01:31:16]} {[%emt 00:00:08]} g6 {[%clk 01:30:19]}
{[%emt 00:01:03]} 3. e3 {[%clk 01:31:06]} {[%emt 00:00:40]} Bg7 {[%clk
01:29:33]} {[%emt 00:01:16]} 4. Bd3 {[%clk 01:31:23]} {[%emt 00:00:13]} d6
{[%clk 01:27:57]} {[%emt 00:02:06]} 5. f4 {[%clk 01:30:31]} {[%emt 00:01:22]}
c5 {[%clk 01:24:06]} {[%emt 00:04:21]} 6. c3 {[%clk 01:30:34]} {[%emt
00:00:28]} Nbd7 {[%clk 01:22:55]} {[%emt 00:01:40]} 7. Nf3 {[%clk 01:30:17]}
{[%emt 00:00:47]} b6 {[%clk 01:20:45]} {[%emt 00:02:41]} 8. Nbd2 {[%clk
01:30:13]} {[%emt 00:00:33]} Bb7 {[%clk 01:19:10]} {[%emt 00:02:06]} 9. O-O
{[%clk 01:29:37]} {[%emt 00:01:05]} h6 {[%clk 01:16:25]} {[%emt 00:03:15]} 10.
Bxf6 {[%clk 01:27:55]} {[%emt 00:02:12]} Nxf6 {[%clk 01:14:55]} {[%emt
00:02:00]} 11. e4 {[%clk 01:19:54]} {[%emt 00:08:31]} O-O {[%clk 01:10:19]}
{[%emt 00:05:06]} 12. Qe2 {[%clk 01:16:08]} {[%emt 00:04:16]} Re8 {[%clk
01:03:44]} {[%emt 00:07:05]} 13. e5 {[%clk 01:08:42]} {[%emt 00:07:55]} Nd5
{[%clk 00:59:43]} {[%emt 00:04:32]} 14. Nh4 {[%clk 01:05:22]} {[%emt 00:03:50]}
cxd4 {[%clk 00:55:19]} {[%emt 00:04:52]} 15. cxd4 {[%clk 01:03:39]} {[%emt
00:02:15]} Nb4 {[%clk 00:53:19]} {[%emt 00:02:29]} 16. e6 {[%clk 00:54:17]}
{[%emt 00:09:53]} Nxd3 {[%clk 00:38:58]} {[%emt 00:14:52]} 17. exf7+ {[%clk
00:52:30]} {[%emt 00:02:16]} Kxf7 {[%clk 00:39:15]} {[%emt 00:00:14]} 18. Qxd3
{[%clk 00:52:27]} {[%emt 00:00:31]} Rg8 {[%clk 00:39:09]} {[%emt 00:00:36]} 19.
Qxg6+ {[%clk 00:47:15]} {[%emt 00:05:42]} Kf8 {[%clk 00:39:38]} {[%emt
00:00:02]} 20. Qe6 {[%clk 00:46:03]} {[%emt 00:01:41]} Bxd4+ {[%clk 00:33:43]}
{[%emt 00:06:26]} 21. Kh1 {[%clk 00:46:19]} {[%emt 00:00:14]} Bf6 {[%clk
00:32:17]} {[%emt 00:01:56]} 22. Ndf3 {[%clk 00:44:46]} {[%emt 00:02:02]} Qc8
{[%clk 00:28:41]} {[%emt 00:04:07]} 23. f5 {[%clk 00:40:35]} {[%emt 00:04:41]}
Qxe6 {[%clk 00:21:55]} {[%emt 00:07:16]} 24. fxe6 {[%clk 00:41:02]} {[%emt
00:00:02]} Bd5 {[%clk 00:18:59]} {[%emt 00:03:27]} 25. Rf2 {[%clk 00:37:01]}
{[%emt 00:04:30]} Bxe6 {[%clk 00:17:43]} {[%emt 00:01:46]} 26. Nd4 {[%clk
00:36:42]} {[%emt 00:00:49]} Bd5 {[%clk 00:16:41]} {[%emt 00:01:33]} 27. Nhf5
{[%clk 00:33:47]} {[%emt 00:03:24]} Rg6 {[%clk 00:13:57]} {[%emt 00:03:15]} 28.
Re1 {[%clk 00:32:53]} {[%emt 00:01:24]} Bxd4 {[%clk 00:04:03]} {[%emt
00:10:24]} 29. Nxd4+ {[%clk 00:30:56]} {[%emt 00:02:27]} Kg8 {[%clk 00:03:10]}
{[%emt 00:01:23]} 30. Rxe7 {[%clk 00:29:52]} {[%emt 00:01:34]} Rf8 {[%clk
00:03:36]} {[%emt 00:00:03]} 31. Nf3 {[%clk 00:25:02]} {[%emt 00:05:20]} Rg7
{[%clk 00:03:00]} {[%emt 00:01:06]} 32. Rxg7+ {[%clk 00:24:32]} {[%emt
00:01:00]} Kxg7 {[%clk 00:03:30]} {[%emt 00:00:01]} 33. b3 {[%clk 00:24:41]}
{[%emt 00:00:21]} Bxf3 {[%clk 00:03:23]} {[%emt 00:00:37]} 34. gxf3 {[%clk
00:24:46]} {[%emt 00:00:24]} Kf6 {[%clk 00:02:56]} {[%emt 00:00:57]} 35. Rd2
{[%clk 00:23:08]} {[%emt 00:02:08]} Rd8 {[%clk 00:01:56]} {[%emt 00:01:32]} 36.
Kg2 {[%clk 00:22:55]} {[%emt 00:00:42]} d5 {[%clk 00:02:05]} {[%emt 00:00:21]}
37. f4 {[%clk 00:22:35]} {[%emt 00:00:49]} d4 {[%clk 00:01:55]} {[%emt
00:00:41]} 38. Kf3 {[%clk 00:21:52]} {[%emt 00:01:13]} Kf5 {[%clk 00:02:18]}
{[%emt 00:00:07]} 39. Rd3 {[%clk 00:21:03]} {[%emt 00:01:18]} h5 {[%clk
00:01:35]} {[%emt 00:01:13]} 40. h4 {[%clk 00:21:08]} {[%emt 00:00:25]} Rd7
{[%clk 00:01:35]} {[%emt 00:00:31]} 41. a4 {[%clk 00:17:26]} {[%emt 00:04:12]}
a5 {[%clk 00:00:49]} {[%emt 00:01:16]} 42. Rd2 {[%clk 00:16:35]} {[%emt
00:01:20]} Rc7 {[%clk 00:21:32]} {[%emt 00:09:48]} 43. Rxd4 {[%clk 00:44:10]}
{[%emt 00:02:55]} Rc3+ {[%clk 00:21:56]} {[%emt 00:00:06]} 44. Kg2 {[%clk
00:44:13]} {[%emt 00:00:27]} Rxb3 {[%clk 00:22:13]} {[%emt 00:00:13]} 45. Rc4
{[%clk 00:43:57]} {[%emt 00:00:45]} Rb4 {[%clk 00:19:26]} {[%emt 00:03:18]} 46.
Rc6 {[%clk 00:43:35]} {[%emt 00:00:51]} Kxf4 {[%clk 00:18:23]} {[%emt
00:01:33]} 47. Rg6 {[%clk 00:43:08]} {[%emt 00:00:58]} Rxa4 {[%clk 00:14:06]}
{[%emt 00:04:47]} 48. Rxb6 {[%clk 00:43:22]} {[%emt 00:00:16]} Kg4 {[%clk
00:11:40]} {[%emt 00:02:55]} 49. Rb5 {[%clk 00:43:22]} {[%emt 00:00:29]} Ra2+
{[%clk 00:11:26]} {[%emt 00:00:45]} 50. Kg1 {[%clk 00:42:14]} {[%emt 00:01:38]}
Kxh4 {[%clk 00:11:49]} {[%emt 00:00:07]} 51. Rc5 {[%clk 00:41:01]} {[%emt
00:01:43]} a4 {[%clk 00:11:06]} {[%emt 00:01:14]} 52. Rc1 {[%clk 00:41:04]}
{[%emt 00:00:26]} a3 {[%clk 00:09:42]} {[%emt 00:01:55]} 53. Kh1 {[%clk
00:39:17]} {[%emt 00:02:16]} Rb2 {[%clk 00:07:07]} {[%emt 00:03:05]} 54. Rc4+
{[%clk 00:37:41]} {[%emt 00:02:06]} Kg5 {[%clk 00:07:31]} {[%emt 00:00:06]} 55.
Rc5+ {[%clk 00:37:46]} {[%emt 00:00:25]} Kg4 {[%clk 00:07:52]} {[%emt
00:00:09]} 56. Rc4+ {[%clk 00:37:54]} {[%emt 00:00:23]} Kf5 {[%clk 00:08:14]}
{[%emt 00:00:06]} 57. Rc5+ {[%clk 00:37:40]} {[%emt 00:00:45]} Ke4 {[%clk
00:08:09]} {[%emt 00:00:35]} 0-1

[Event "NJSK 2021 Meisjes A&B"]
[Site "Almelo, Netherlands"]
[Date "2021.08.07"]
[Round "7.3"]
[White "Venema, Katja"]
[Black "Den Heijer, Rolinde"]
[Result "1-0"]
[TimeControl "90min/40moves + 30sec/move"]
[WhiteElo "1356"]
[BlackElo "1483"]

1. d4 {[%clk 01:30:57]} {[%emt 00:00:03]} d5 {[%clk 01:30:58]} {[%emt
00:00:03]} 2. c4 {[%clk 01:31:21]} {[%emt 00:00:05]} e6 {[%clk 01:31:24]}
{[%emt 00:00:04]} 3. Nc3 {[%clk 01:31:44]} {[%emt 00:00:06]} Be7 {[%clk
01:31:45]} {[%emt 00:00:10]} 4. Nf3 {[%clk 01:32:00]} {[%emt 00:00:14]} Nf6
{[%clk 01:31:58]} {[%emt 00:00:17]} 5. Bf4 {[%clk 01:32:04]} {[%emt 00:00:26]}
O-O {[%clk 01:31:27]} {[%emt 00:01:00]} 6. e3 {[%clk 01:31:44]} {[%emt
00:00:50]} b6 {[%clk 01:30:31]} {[%emt 00:01:27]} 7. Be2 {[%clk 01:30:40]}
{[%emt 00:01:34]} Bb7 {[%clk 01:29:55]} {[%emt 00:01:06]} 8. O-O {[%clk
01:29:56]} {[%emt 00:01:14]} c5 {[%clk 01:28:36]} {[%emt 00:01:50]} 9. Rc1
{[%clk 01:25:13]} {[%emt 00:05:12]} Nc6 {[%clk 01:26:17]} {[%emt 00:02:49]} 10.
a3 {[%clk 01:17:18]} {[%emt 00:08:25]} cxd4 {[%clk 01:20:39]} {[%emt 00:06:08]}
11. exd4 {[%clk 01:15:59]} {[%emt 00:01:49]} Rc8 {[%clk 01:17:11]} {[%emt
00:03:58]} 12. b4 {[%clk 01:13:19]} {[%emt 00:03:10]} dxc4 {[%clk 01:15:15]}
{[%emt 00:02:26]} 13. Bxc4 {[%clk 01:09:11]} {[%emt 00:04:37]} Nxd4 {[%clk
01:09:41]} {[%emt 00:06:04]} 14. Be2 {[%clk 01:01:42]} {[%emt 00:07:59]} Nxe2+
{[%clk 01:06:23]} {[%emt 00:03:48]} 15. Qxe2 {[%clk 01:01:12]} {[%emt
00:01:00]} Nd5 {[%clk 00:59:18]} {[%emt 00:07:35]} 16. Nxd5 {[%clk 00:56:56]}
{[%emt 00:04:46]} Bxd5 {[%clk 00:54:09]} {[%emt 00:05:39]} 17. Rxc8 {[%clk
00:55:02]} {[%emt 00:02:24]} Qxc8 {[%clk 00:54:30]} {[%emt 00:00:09]} 18. Rc1
{[%clk 00:54:22]} {[%emt 00:01:10]} Qd8 {[%clk 00:48:52]} {[%emt 00:06:07]} 19.
h3 {[%clk 00:51:20]} {[%emt 00:03:32]} Bd6 {[%clk 00:45:34]} {[%emt 00:03:48]}
20. Be3 {[%clk 00:48:35]} {[%emt 00:03:15]} Qf6 {[%clk 00:41:49]} {[%emt
00:04:15]} 21. Rd1 {[%clk 00:42:38]} {[%emt 00:06:28]} Bb8 {[%clk 00:38:27]}
{[%emt 00:03:52]} 22. Nd4 {[%clk 00:36:37]} {[%emt 00:06:32]} Qe5 {[%clk
00:35:21]} {[%emt 00:03:33]} 23. f4 {[%clk 00:33:52]} {[%emt 00:03:17]} Qe4
{[%clk 00:30:35]} {[%emt 00:05:15]} 24. Qf2 {[%clk 00:32:01]} {[%emt 00:02:22]}
h6 {[%clk 00:27:45]} {[%emt 00:03:21]} 25. f5 {[%clk 00:28:55]} {[%emt
00:03:35]} Qe5 {[%clk 00:25:50]} {[%emt 00:02:23]} 26. Rc1 {[%clk 00:20:20]}
{[%emt 00:09:08]} exf5 {[%clk 00:21:29]} {[%emt 00:04:50]} 27. Nxf5 {[%clk
00:15:37]} {[%emt 00:05:12]} Qh2+ {[%clk 00:20:28]} {[%emt 00:01:31]} 28. Kf1
{[%emt 00:05:17]} Qh1+ {[%clk 00:13:47]} {[%emt 00:02:08]} 29. Qg1 {[%clk
00:14:13]} {[%emt 00:02:11]} Qxg1+ {[%clk 00:12:02]} {[%emt 00:02:15]} 30. Kxg1
{[%clk 00:13:29]} {[%emt 00:01:14]} Re8 {[%clk 00:11:20]} {[%emt 00:01:13]} 31.
Bd4 {[%clk 00:13:03]} {[%emt 00:00:55]} f6 {[%clk 00:11:17]} {[%emt 00:00:33]}
32. Kf2 {[%clk 00:11:47]} {[%emt 00:01:46]} Be5 {[%clk 00:10:14]} {[%emt
00:01:33]} 33. Bxe5 {[%clk 00:11:14]} {[%emt 00:01:04]} Rxe5 {[%clk 00:09:55]}
{[%emt 00:00:49]} 34. g4 {[%clk 00:10:20]} {[%emt 00:01:23]} Be4 {[%clk
00:08:36]} {[%emt 00:01:49]} 35. Nd6 {[%clk 00:09:32]} {[%emt 00:01:18]} Re7
{[%clk 00:07:56]} {[%emt 00:01:10]} 36. Re1 {[%clk 00:08:54]} {[%emt 00:01:07]}
Rc7 {[%clk 00:07:25]} {[%emt 00:01:02]} 37. Rxe4 {[%clk 00:08:32]} {[%emt
00:00:52]} a6 {[%clk 00:06:25]} {[%emt 00:01:30]} 38. Nf5 {[%clk 00:07:51]}
{[%emt 00:01:11]} Kf7 {[%clk 00:05:56]} {[%emt 00:00:58]} 39. Nd6+ {[%clk
00:07:56]} {[%emt 00:00:25]} Kg6 {[%clk 00:05:52]} {[%emt 00:00:32]} 40. h4
{[%clk 00:07:26]} {[%emt 00:01:03]} h5 {[%clk 00:05:08]} {[%emt 00:01:14]} 41.
gxh5+ {[%clk 00:05:23]} {[%emt 00:02:33]} Kxh5 {[%clk 00:04:44]} {[%emt
00:00:53]} 42. Nc4 {[%clk 00:04:44]} {[%emt 00:01:10]} Rc6 {[%clk 00:04:05]}
{[%emt 00:01:09]} 43. Rf4 {[%clk 00:01:51]} {[%emt 00:03:22]} b5 {[%clk
00:02:08]} {[%emt 00:02:27]} 44. Ne3 {[%clk 00:26:45]} {[%emt 00:05:37]} Rc3
{[%clk 00:28:59]} {[%emt 00:03:39]} 45. Nf5 {[%clk 00:26:08]} {[%emt 00:01:07]}
Kg6 {[%clk 00:25:06]} {[%emt 00:04:22]} 46. Ne7+ {[%clk 00:24:28]} {[%emt
00:02:11]} Kf7 {[%clk 00:23:57]} {[%emt 00:01:39]} 47. Nd5 {[%clk 00:23:42]}
{[%emt 00:01:10]} Rxa3 {[%clk 00:23:25]} {[%emt 00:01:09]} 48. Nc7 {[%clk
00:22:46]} {[%emt 00:01:25]} Kg6 {[%clk 00:21:24]} {[%emt 00:02:30]} 49. Kg2
{[%clk 00:22:12]} {[%emt 00:01:05]} Kh5 {[%clk 00:19:39]} {[%emt 00:02:15]} 50.
Ne8 {[%clk 00:21:16]} {[%emt 00:01:26]} Kh6 {[%clk 00:14:40]} {[%emt 00:05:29]}
51. Rg4 {[%clk 00:20:23]} {[%emt 00:01:22]} f5 {[%clk 00:13:25]} {[%emt
00:01:45]} 52. Rf4 {[%clk 00:19:27]} {[%emt 00:01:27]} g6 {[%clk 00:12:54]}
{[%emt 00:01:01]} 53. Nc7 {[%clk 00:18:52]} {[%emt 00:01:05]} Kg7 {[%clk
00:12:36]} {[%emt 00:00:47]} 54. Kf2 {[%clk 00:18:45]} {[%emt 00:00:38]} Kf6
{[%clk 00:12:26]} {[%emt 00:00:39]} 55. Rd4 {[%clk 00:18:27]} {[%emt 00:00:49]}
Ke5 {[%clk 00:12:14]} {[%emt 00:00:42]} 56. Rd5+ {[%clk 00:18:24]} {[%emt
00:00:32]} Kf4 {[%clk 00:11:27]} {[%emt 00:01:18]} 57. Rd6 {[%clk 00:15:33]}
{[%emt 00:03:21]} Ra2+ {[%clk 00:11:44]} {[%emt 00:00:13]} 58. Kf1 {[%clk
00:15:34]} {[%emt 00:00:29]} a5 {[%clk 00:11:00]} {[%emt 00:01:14]} 59. Nxb5
{[%clk 00:15:08]} {[%emt 00:00:56]} axb4 {[%clk 00:11:07]} {[%emt 00:00:23]} 60.
Rxg6 {[%clk 00:13:12]} {[%emt 00:02:25]} b3 {[%clk 00:09:59]} {[%emt 00:01:39]}
61. Nc3 {[%clk 00:13:12]} {[%emt 00:00:30]} Rc2 {[%clk 00:07:51]} {[%emt
00:02:39]} 62. Ne2+ {[%clk 00:13:07]} {[%emt 00:00:34]} Ke3 {[%clk 00:06:17]}
{[%emt 00:02:03]} 63. Rg3+ {[%clk 00:13:03]} {[%emt 00:00:35]} Ke4 {[%emt
00:00:33]} 64. Rxb3 {[%emt 00:00:12]} f4 {[%clk 00:05:08]} {[%emt 00:00:54]} 65.
Kf2 {[%clk 00:12:49]} {[%emt 00:00:44]} Rc4 {[%clk 00:04:28]} {[%emt 00:01:10]}
66. h5 {[%clk 00:12:34]} {[%emt 00:00:45]} Kf5 {[%clk 00:04:26]} {[%emt
00:00:33]} 67. Kf3 {[%clk 00:12:25]} {[%emt 00:00:38]} Kg5 {[%clk 00:03:44]}
{[%emt 00:01:12]} 68. Rb5+ {[%clk 00:12:46]} {[%emt 00:00:09]} Kh6 {[%clk
00:04:05]} {[%emt 00:00:07]} 69. Nxf4 {[%clk 00:12:54]} {[%emt 00:00:23]} Rc6
{[%clk 00:04:09]} {[%emt 00:00:26]} 70. Kg4 {[%clk 00:13:00]} {[%emt 00:00:25]}
Ra6 {[%clk 00:04:12]} {[%emt 00:00:28]} 71. Rg5 {[%clk 00:13:05]} {[%emt
00:00:24]} Ra1 {[%clk 00:04:14]} {[%emt 00:00:28]} 72. Rg6+ {[%clk 00:13:19]}
{[%emt 00:00:15]} Kh7 {[%clk 00:04:37]} {[%emt 00:00:07]} 73. Kf5 {[%clk
00:13:11]} {[%emt 00:00:38]} Ra5+ {[%clk 00:04:58]} {[%emt 00:00:09]} 74. Kf6
{[%clk 00:13:29]} {[%emt 00:00:13]} Ra6+ {[%clk 00:04:52]} {[%emt 00:00:36]} 75.
Ne6 {[%clk 00:13:31]} {[%emt 00:00:27]} Rb6 {[%clk 00:04:36]} {[%emt 00:00:50]}
76. Ke7 {[%clk 00:13:34]} {[%emt 00:00:23]} Ra6 {[%clk 00:04:37]} {[%emt
00:00:29]} 77. Nf8 {[%clk 00:13:53]} {[%emt 00:00:11]} 1-0